bitfinex-derivatives/quotes_ETHF0:USTF0_20241023
["timestamp","ask_amount","ask_price","bid_price","bid_amount"]
[1729642728950,4.38466745,2620.3,2620.2,0.34363]
[1729642729450,4.72828745,2620.3,2620.1,3.32364]
[1729642729847,4.38466745,2620.3,2620.1,2.98]
[1729642730054,4.38466745,2620.3,2620.2,0.34363]
[1729642738958,0.4159,2620.3,2620.2,0.34363]
[1729642739550,4.38466745,2620.3,2620.2,0.34363]
[1729642741361,3.96876745,2620.3,2620.2,0.34363]
[1729642741567,3.96876745,2620.4,2620.3,0.34362]
[1729642741766,3.96876745,2620.5,2620.3,0.8103]
[1729642741956,4.37776745,2620.4,2620.3,0.4114]
[1729642742160,4.37776745,2620.4,2620.2,0.34363]
[1729642742161,5.14847745,2620.4,2620.2,0.34363]
[1729642742467,5.14847745,2620.4,2620.0,3.55146]
[1729642742468,0.34364,2620.2,2620.0,3.55146]
[1729642742660,4.31240745,2620.2,2620.0,3.55146]
[1729642743161,3.96876745,2620.2,2620.0,3.55146]
[1729642743370,4.31240745,2620.2,2620.0,3.55146]
[1729642743865,3.96876745,2620.2,2620.1,0.34365]
[1729642744260,3.96876745,2620.2,2620.0,6.1878]
[1729642744461,0.34365,2620.1,2620.0,3.2078]
[1729642744662,4.31241745,2620.1,2620.0,3.2078]
[1729642745066,0.34365,2620.1,2620.0,3.2078]
[1729642745766,4.80254282,2620.2,2620.0,3.55146]
[1729642746068,4.45890282,2620.2,2620.0,3.2078]
[1729642746269,4.80254282,2620.2,2620.1,1.38]
[1729642747063,4.45890282,2620.2,2620.1,1.38]
[1729642747762,5.38730615,2620.3,2620.1,1.38]
[1729642747962,0.34363,2620.2,2620.1,1.38]
[1729642748771,5.31403615,2620.2,2620.1,1.38]
[1729642750370,4.97040615,2620.2,2620.1,1.38]
[1729642750877,4.97040615,2620.2,2620.1,1.72365]
[1729642751971,4.97040615,2620.2,2620.1,1.38]
[1729642752470,0.76053,2620.3,2620.1,1.38]
[1729642752671,0.76053,2620.3,2620.2,1.38]
[1729642762780,0.34364,2620.2,2620.0,0.34365]
[1729642762982,4.47454164,2620.1,2620.0,0.34365]
[1729642763478,5.85456573,2620.1,2619.8,3.2078]
[1729642763677,8.9490306,2619.9,2619.8,0.34369]
[1729642763985,4.97171294,2619.9,2619.8,0.34369]
[1729642764882,4.97171294,2619.9,2619.8,1.72369]
[1729642766182,4.97171294,2619.9,2619.4,3.6092]
[1729642766385,3.97573052,2619.6,2619.5,0.34373]
[1729642766886,3.97573052,2619.6,2619.5,4.16133]
[1729642767583,3.97573052,2619.6,2619.5,5.54133]
[1729642767773,3.97573052,2619.6,2619.5,1.72373]
[1729642776285,3.97573052,2619.7,2619.5,5.1976]
[1729642776491,3.97573052,2619.7,2619.6,1.72371]
[1729642776785,3.97573052,2619.7,2619.6,5.54131]
[1729642780091,3.97573052,2619.7,2619.6,8.74911]
[1729642781580,3.97573052,2619.7,2619.6,4.93151]
[1729642782685,3.97573052,2619.7,2619.6,4.5878]
[1729642782889,0.34374,2619.5,2619.3,3.2078]
[1729642783086,0.76654,2619.4,2619.3,3.2078]
[1729642783279,4.74227052,2619.4,2619.3,4.5878]
[1729642783594,5.23923683,2619.4,2619.3,4.5878]
[1729642784991,0.76654,2619.4,2619.3,4.5878]
[1729642787882,0.76654,2619.4,2619.3,1.38]
[1729642789189,4.89549683,2619.4,2619.3,1.38]
[1729642789600,0.4228,2619.4,2619.3,1.38]
[1729642792094,0.4228,2619.4,2619.3,1.72375]
[1729642792400,4.39590083,2619.4,2619.3,1.38]
[1729642795604,3.97310083,2619.4,2619.3,1.72375]
[1729642796598,3.97310083,2619.4,2619.3,2.12725]
[1729642798395,4.47269683,2619.6,2619.3,2.12725]
[1729642798396,3.47643361,2619.5,2619.3,5.6011]
[1729642798596,3.47643361,2619.6,2619.4,2.1916]
[1729642798796,3.47643361,2619.6,2619.5,4.93153]
[1729642804006,3.47643361,2619.6,2619.5,3.2078]
[1729642804310,1.72371,2619.6,2619.5,3.2078]
[1729642804517,1.72371,2619.6,2619.5,1.38]
[1729642804518,0.34371,2619.6,2619.5,1.38]
[1729642804703,4.81640683,2619.6,2619.5,1.38]
[1729642805411,6.19640683,2619.6,2619.5,1.38]
[1729642805604,6.19640683,2619.6,2619.2,1.38]
[1729642805605,0.34375,2619.3,2619.2,1.38]
[1729642805809,1.72375,2619.3,2619.2,1.38]
[1729642806212,0.34377,2619.2,2619.1,1.38]
[1729642806411,1.14607,2619.2,2619.1,1.38]
[1729642806605,5.61756911,2619.2,2619.1,1.38]
[1729642806806,5.27379911,2619.2,2619.1,1.38]
[1729642807305,0.8023,2619.2,2619.1,1.38]
[1729642807698,5.27379911,2619.2,2619.1,1.38]
[1729642808113,6.99756911,2619.2,2619.1,1.38]
[1729642808303,0.3438,2619.0,2618.9,1.38]
[1729642808899,5.22103101,2619.0,2618.9,1.38]
[1729642809609,5.22004463,2619.0,2618.9,1.38]
[1729642810309,0.7499,2619.0,2618.9,1.38]
[1729642810512,5.21899025,2619.0,2618.9,1.38]
[1729642811109,6.59898025,2619.0,2618.9,1.38]
[1729642811805,6.59898025,2619.0,2618.6,0.3922]
[1729642811806,0.34383,2618.8,2618.6,0.3922]
[1729642812011,0.4106,2618.7,2618.6,0.3922]
[1729642812312,0.34385,2618.6,2618.2,0.34389]
[1729642812520,3.47333645,2618.4,2618.2,0.76529]
[1729642812805,3.47333645,2618.3,2618.2,0.76529]
[1729642813014,3.47333645,2618.3,2618.2,0.4214]
[1729642813314,3.47333645,2618.3,2618.2,2.1453]
[1729642814412,3.47333645,2618.4,2618.2,2.1453]
[1729642814618,3.47333645,2618.4,2618.3,1.38]
[1729642815411,3.47333645,2618.4,2618.2,0.7653]
[1729642815412,8.67253645,2618.4,2617.7,3.2078]
[1729642815610,3.47333645,2618.3,2618.2,1.38]
[1729642816117,5.19721645,2618.3,2618.2,1.38]
[1729642816313,5.19721645,2618.3,2618.1,1.38]
[1729642816513,0.7962,2618.2,2618.1,1.38]
[1729642816814,0.34391,2618.1,2618.0,3.2078]
[1729642817007,9.08303645,2618.1,2617.7,3.2078]
[1729642817208,9.08303645,2618.1,2617.6,1.38]
[1729642817209,1.38,2617.8,2617.6,1.38]
[1729642817517,0.8332,2617.7,2617.4,4.78079]
[1729642818111,0.8332,2617.7,2617.6,1.38]
[1729642819011,1.17716,2617.7,2617.6,1.38]
[1729642819211,2.55716,2617.7,2617.6,1.38]
[1729642819921,2.2132,2617.7,2617.6,1.38]
[1729642820811,2.55716,2617.7,2617.6,1.38]
[1729642821009,2.55716,2617.7,2617.3,3.2078]
[1729642821223,1.72398,2617.6,2617.5,1.38]
[1729642821517,0.34398,2617.6,2617.5,1.38]
[1729642822017,2.14008,2617.6,2617.5,1.38]
[1729642822213,1.7961,2617.6,2617.2,3.2078]
[1729642822413,1.38,2617.3,2617.2,1.38]
[1729642822920,1.38,2617.4,2617.2,1.38]
[1729642823122,0.34399,2617.5,2617.3,1.38]
[1729642823714,1.72399,2617.5,2617.3,1.38]
[1729642824117,1.38,2617.5,2617.3,1.38]
[1729642824515,1.724,2617.5,2617.3,1.38]
[1729642824715,0.34401,2617.4,2617.2,1.38]
[1729642824918,1.38,2617.3,2617.1,0.3848]
[1729642825112,1.7776,2617.3,2617.2,1.38]
[1729642825318,2.12162,2617.3,2617.2,1.38]
[1729642825518,0.3976,2617.3,2617.2,1.38]
[1729642825725,0.74162,2617.3,2617.2,1.38]
[1729642826021,2.12162,2617.3,2617.2,1.38]
[1729642826417,2.12162,2617.3,2616.8,3.2078]
[1729642826614,2.12162,2617.3,2617.2,1.38]
[1729642826822,0.3976,2617.3,2617.2,1.38]
[1729642829427,0.3976,2617.3,2617.2,1.72403]
[1729642829723,0.3976,2617.3,2617.2,0.7388]
[1729642830023,8.8062,2617.3,2616.6,0.3441]
[1729642830214,1.7241,2616.7,2616.5,1.72412]
[1729642830521,1.38,2616.7,2616.5,1.72411]
[1729642831628,1.38,2616.7,2616.5,1.38]
[1729642832226,1.38,2616.7,2616.4,3.55193]
[1729642832430,0.34409,2616.8,2616.4,3.55193]
[1729642832725,3.2078,2617.0,2616.4,3.2078]
[1729642832930,3.2078,2617.0,2616.4,6.1878]
[1729642833226,3.55186,2617.0,2616.6,0.3441]
[1729642833530,0.34408,2616.9,2616.5,0.34411]
[1729642833731,0.34409,2616.8,2616.4,6.53193]
[1729642833931,0.34409,2616.8,2616.4,3.2078]
[1729642834230,0.34409,2616.8,2616.5,0.34412]
[1729642834428,6.1878,2617.0,2616.4,3.2078]
[1729642834630,3.55187,2617.0,2616.6,0.3441]
[1729642835031,3.55187,2617.0,2616.7,0.3913]
[1729642835223,3.55187,2617.0,2616.8,0.4017]
[1729642835423,0.34407,2616.9,2616.8,0.4017]
[1729642836032,3.8216,2616.9,2616.3,41.14414]
[1729642836329,0.3441,2616.7,2616.4,1.16203]
[1729642836926,0.3441,2616.7,2616.4,0.8179]
[1729642837632,0.34412,2616.6,2616.3,0.34414]
[1729642837820,0.3441,2616.7,2616.4,0.3913]
[1729642838330,0.3441,2616.7,2616.4,0.73543]
[1729642839334,0.34411,2616.6,2616.4,0.3913]
[1729642839526,0.3441,2616.7,2616.4,0.3913]
[1729642839723,0.773,2616.8,2616.4,0.3913]
[1729642839928,0.34409,2616.7,2616.4,0.73543]
[1729642840427,6.1878,2617.0,2616.5,0.34411]
[1729642840623,0.34408,2616.9,2616.6,0.764]
[1729642840824,3.2078,2617.0,2616.6,0.4199]
[1729642841031,0.34408,2616.8,2616.6,0.4199]
[1729642841526,3.2078,2617.0,2616.6,0.764]
[1729642841732,0.3959,2617.1,2616.6,3.3999]
[1729642841938,0.34405,2617.1,2616.8,0.34407]
[1729642842137,0.34405,2617.1,2616.9,0.4102]
[1729642842433,3.2078,2617.0,2616.0,3.2078]
[1729642842629,3.2078,2617.0,2616.2,1.16155]
[1729642842630,0.34411,2616.6,2616.2,1.16155]
[1729642842831,2.98,2616.8,2616.2,0.8174]
[1729642843143,0.34411,2616.6,2616.3,0.76024]
[1729642843435,0.3882,2616.7,2616.3,0.76024]
[1729642843632,6.5977,2617.0,2616.3,0.4161]
[1729642843834,4.9839,2617.0,2616.3,0.4161]
[1729642844034,0.34409,2616.8,2616.3,0.4161]
[1729642844225,0.34409,2616.8,2616.4,0.34412]
[1729642844433,0.34409,2616.8,2616.3,0.4161]
[1729642844434,4.9839,2617.0,2616.3,0.4161]
[1729642844627,0.34411,2616.6,2616.3,0.76024]
[1729642845743,7.9639,2617.0,2616.3,0.4161]
[1729642845941,0.3441,2616.7,2616.4,0.34413]
[1729642846132,0.34411,2616.6,2616.3,0.76024]
[1729642846737,7.9639,2617.0,2616.3,0.76024]
[1729642847032,0.3441,2616.7,2616.4,0.34413]
[1729642848055,3.2078,2616.8,2616.3,3.3961]
[1729642848235,3.2078,2616.8,2616.6,0.3441]
[1729642848541,3.2078,2616.8,2616.7,0.7899]
[1729642848743,3.55188,2616.8,2616.7,0.7899]
[1729642849239,3.55188,2616.8,2616.7,0.4032]
[1729642849940,3.55188,2616.8,2616.7,0.7899]
[1729642850144,3.2078,2616.8,2616.7,0.7899]
[1729642850345,3.2078,2616.8,2616.7,1.13399]
[1729642851238,3.55188,2616.8,2616.7,0.7899]
[1729642855936,3.2078,2616.8,2616.7,0.7899]
[1729642856338,4.5878,2616.8,2616.7,2.1699]
[1729642856639,3.2078,2616.8,2616.7,2.51399]
[1729642857144,1.38,2617.0,2616.8,0.34407]
[1729642857342,1.38,2617.0,2616.9,1.7925]
[1729642857644,4.5878,2617.4,2616.9,1.7925]
[1729642857843,3.2078,2617.4,2617.3,1.72402]
[1729642858047,4.5878,2617.4,2617.3,0.34402]
[1729642858341,3.5518,2617.4,2617.0,0.34405]
[1729642858541,3.5518,2617.4,2617.3,0.4057]
[1729642859449,3.2078,2617.4,2617.3,1.15632]
[1729642859647,3.5518,2617.4,2617.3,1.15632]
[1729642859848,0.8227,2617.5,2617.4,0.344]
[1729642859849,0.41,2617.5,2617.4,0.344]
[1729642860047,3.88553249,2617.7,2617.4,0.34399]
[1729642860246,0.34398,2617.6,2617.5,0.34399]
[1729642860750,0.34399,2617.5,2617.4,0.344]
[1729642860952,0.344,2617.4,2617.3,1.15631]
[1729642862351,0.344,2617.4,2617.3,0.8123]
[1729642862550,3.81123249,2617.4,2617.3,0.8123]
[1729642862748,3.46723249,2617.4,2617.1,0.34404]
[1729642862948,3.46723249,2617.4,2617.0,0.7919]
[1729642863151,3.46723249,2617.4,2617.2,0.34402]
[1729642863345,3.46723249,2617.4,2617.3,0.34402]
[1729642863958,3.46723249,2617.4,2617.1,3.2078]
[1729642864257,3.46723249,2617.4,2617.3,0.34402]
[1729642864456,3.46723249,2617.5,2617.2,2.98]
[1729642864653,4.31572358,2617.6,2617.4,0.344]
[1729642864849,4.31572358,2617.6,2617.5,0.3993]
[1729642865048,4.31572358,2617.6,2617.5,0.8169]
[1729642865263,3.97174358,2617.6,2617.5,1.16089]
[1729642865552,4.46821152,2617.8,2617.7,0.34396]
[1729642865756,3.96852216,2617.9,2617.7,2.98]
[1729642865958,4.46821152,2618.0,2617.7,2.98]
[1729642865959,3.47295376,2618.0,2617.8,7.4211]
[1729642866253,3.96852216,2618.1,2617.9,0.34394]
[1729642866254,3.47295376,2618.1,2617.9,0.34394]
[1729642866459,3.47295376,2618.1,2618.0,0.4271]
[1729642866846,3.47295376,2618.1,2618.0,0.77102]
[1729642867050,3.47295376,2618.1,2618.0,0.4271]
[1729642868251,3.81685376,2618.2,2618.0,0.4271]
[1729642868451,3.47295376,2618.1,2618.0,0.4271]
[1729642869857,3.47295376,2618.1,2618.0,0.77102]
[1729642870060,3.47295376,2618.2,2618.1,0.34391]
[1729642870260,3.47295376,2618.5,2618.3,0.34388]
[1729642870461,3.47295376,2618.5,2618.4,0.34387]
[1729642870650,3.47295376,2618.6,2618.3,0.34388]
[1729642870848,3.81680376,2618.6,2618.3,0.34388]
[1729642871156,3.81680376,2618.6,2618.4,0.4149]
[1729642871463,3.81680376,2618.6,2618.1,6.1878]
[1729642871464,6.79680376,2618.6,2618.2,0.34389]
[1729642871649,4.06752,2618.3,2617.2,3.2078]
[1729642871852,2.98,2617.9,2617.6,0.4243]
[1729642872156,0.34394,2617.9,2617.6,0.4243]
[1729642872348,3.46483414,2618.0,2617.7,0.4053]
[1729642872553,0.34395,2617.8,2617.7,0.4053]
[1729642872861,0.34395,2617.8,2617.7,3.6131]
[1729642873356,0.34395,2617.9,2617.7,3.6131]
[1729642873761,0.34395,2617.8,2617.7,3.6131]
[1729642874366,3.46483414,2618.0,2617.7,0.4053]
[1729642874657,0.34395,2617.8,2617.7,0.4053]
[1729642877261,6.44483414,2617.9,2617.6,0.4243]
[1729642877463,0.34396,2617.7,2617.6,0.4243]
[1729642877865,0.74376,2617.7,2617.6,0.4243]
[1729642878472,0.3998,2617.7,2617.6,0.4243]
[1729642878669,3.46483414,2617.9,2617.6,0.4243]
[1729642878865,0.34396,2617.8,2617.6,0.4243]
[1729642880772,3.46483414,2617.9,2617.6,0.4243]
[1729642881070,0.34396,2617.8,2617.6,0.4243]
[1729642881869,0.34396,2617.8,2617.4,3.2078]
[1729642881870,6.8,2617.8,2617.4,3.2078]
[1729642882174,0.34399,2617.5,2617.4,3.2078]
[1729642882568,0.4202,2617.5,2617.1,0.8163]
[1729642882778,0.34401,2617.4,2617.1,1.16034]
[1729642883073,9.65263414,2617.4,2616.6,3.2078]
[1729642883275,0.34404,2617.1,2616.8,0.75877]
[1729642883976,3.88223414,2617.3,2616.8,0.4147]
[1729642884171,0.34406,2617.0,2616.8,0.4147]
[1729642885071,0.4103,2617.2,2616.8,0.4147]
[1729642885072,3.87513414,2617.2,2616.8,0.4147]
[1729642885376,0.34405,2617.1,2616.8,0.4147]
[1729642885580,0.34408,2616.8,2616.6,3.2078]
[1729642885876,0.34407,2616.9,2616.5,1.15481]
[1729642886081,0.4204,2617.0,2616.6,0.3441]
[1729642886470,0.34406,2617.0,2616.7,0.34409]
[1729642886678,6.67263414,2617.1,2616.6,6.1878]
[1729642887174,0.34407,2616.9,2616.6,3.5519]
[1729642887368,0.34408,2616.8,2616.6,3.2078]
[1729642887577,0.34409,2616.7,2616.6,3.2078]
[1729642887778,0.34409,2616.8,2616.6,3.2078]
[1729642888075,3.46483414,2617.0,2616.6,6.5319]
[1729642888282,0.34408,2616.8,2616.6,6.1878]
[1729642888471,0.34407,2616.9,2616.6,6.53191]
[1729642888977,3.80889414,2617.0,2616.8,2.98]
[1729642889171,3.80889414,2617.0,2616.9,0.3849]
[1729642889172,0.34406,2617.0,2616.9,0.3849]
[1729642889572,3.55185,2617.1,2616.9,0.3849]
[1729642890177,3.2078,2617.1,2616.9,0.3849]
[1729642890476,3.46483414,2617.4,2617.0,3.3874]
[1729642890674,3.80883414,2617.5,2617.3,0.34401]
[1729642890974,3.80883414,2617.5,2617.4,0.4142]
[1729642890975,0.344,2617.5,2617.4,0.4142]
[1729642891178,3.80881414,2617.6,2617.4,0.7582]
[1729642891377,6.78881414,2617.6,2617.5,0.4074]
[1729642891580,3.8208,2617.5,2617.0,0.3939]
[1729642891877,3.8208,2617.5,2616.9,0.8216]
[1729642891878,0.34404,2617.2,2616.9,0.8216]
[1729642892075,3.46239063,2617.3,2616.9,1.16566]
[1729642892282,0.34404,2617.1,2616.9,1.16566]
[1729642892579,0.34405,2617.0,2616.9,0.8216]
[1729642893074,6.8016,2617.0,2616.5,3.2078]
[1729642893275,6.8016,2617.0,2616.4,0.34413]
[1729642893276,3.80649063,2616.7,2616.4,0.34413]
[1729642893582,0.4077,2616.9,2616.3,3.2078]
[1729642893583,3.80648063,2616.8,2616.3,3.2078]
[1729642893773,3.46239063,2616.8,2616.6,0.3441]
[1729642893975,3.46239063,2616.9,2616.7,0.8262]
[1729642894176,3.46239063,2616.9,2616.7,1.17029]
[1729642894478,0.34408,2616.8,2616.7,0.8262]
[1729642894775,3.46239063,2616.9,2616.7,1.17029]
[1729642894968,3.46239063,2616.9,2616.8,0.34408]
[1729642895173,3.46239063,2617.0,2616.7,4.034]
[1729642895374,3.46239063,2617.3,2617.1,0.34404]
[1729642895578,8.43673368,2617.4,2617.2,1.252]
[1729642895579,3.46239063,2617.4,2617.2,1.252]
[1729642895776,3.80639063,2617.5,2617.2,1.59602]
[1729642895976,0.344,2617.4,2617.2,1.59602]
[1729642896181,0.344,2617.4,2617.2,1.252]
[1729642896381,3.46239063,2617.5,2617.3,0.34401]
[1729642896382,3.80638063,2617.5,2617.3,0.34401]
[1729642896582,3.46239063,2617.5,2617.3,0.34401]
[1729642897076,4.21548063,2617.6,2617.3,0.34401]
[1729642897279,3.87149063,2617.6,2617.3,0.34401]
[1729642897487,3.80638063,2617.5,2617.2,1.59602]
[1729642897781,3.87149063,2617.6,2617.2,1.59602]
[1729642897978,0.34401,2617.4,2617.2,1.252]
[1729642898179,3.46239063,2617.5,2617.2,1.252]
[1729642898678,3.46239063,2617.4,2617.2,1.252]
[1729642898980,0.34402,2617.3,2617.2,1.252]
[1729642899380,3.46239063,2617.4,2617.2,1.252]
[1729642899982,0.34402,2617.3,2617.2,1.252]
[1729642900374,3.80640063,2617.4,2617.2,1.252]
[1729642900571,0.34402,2617.3,2617.2,1.252]
[1729642901180,3.80640063,2617.4,2617.2,1.252]
[1729642904280,3.46239063,2617.4,2617.2,1.252]
[1729642904481,0.34402,2617.3,2617.2,1.252]
[1729642905282,3.80641063,2617.3,2617.2,1.252]
[1729642907179,3.80641063,2617.3,2617.2,0.4258]
[1729642907385,0.34403,2617.2,2617.1,3.2078]
[1729642907685,3.46239063,2617.3,2617.1,3.2078]
[1729642907879,3.80641063,2617.3,2617.2,0.3863]
[1729642908079,3.46239063,2617.3,2617.2,0.7745]
[1729642908979,3.80641063,2617.3,2617.2,0.7745]
[1729642912984,3.80641063,2617.3,2616.9,0.4153]
[1729642912985,4.68088,2617.2,2616.4,3.2078]
[1729642913180,0.34411,2616.6,2616.5,0.3995]
[1729642913379,3.80650063,2616.6,2616.5,0.3995]
[1729642913685,0.34411,2616.6,2616.5,0.3995]
[1729642916384,0.34412,2616.5,2616.4,0.4216]
[1729642916590,0.34412,2616.5,2615.9,3.2078]
[1729642916591,3.2078,2616.5,2616.1,0.75937]
[1729642916796,3.46741214,2616.3,2616.1,0.4152]
[1729642916990,0.34415,2616.3,2616.1,0.4152]
[1729642917196,3.81156214,2616.3,2616.1,0.4152]
[1729642917496,3.81156214,2616.3,2616.1,0.75937]
[1729642917696,3.81156214,2616.3,2616.1,0.4152]
[1729642918694,3.46741214,2616.3,2616.1,0.4152]
[1729642918885,3.81156214,2616.3,2616.1,0.4152]
[1729642919192,3.46741214,2616.3,2616.1,0.4152]
[1729642919384,0.34416,2616.2,2616.1,0.4152]
[1729642919587,0.34418,2616.1,2615.8,0.51110838]
[1729642919786,0.34417,2616.1,2615.9,0.3922]
[1729642920189,0.34418,2616.1,2615.9,0.3922]
[1729642920390,0.34418,2616.1,2615.8,0.34421]
[1729642920592,0.34418,2616.1,2615.8,0.75501]
[1729642920797,0.34418,2616.1,2615.8,0.4108]
[1729642921089,3.81160214,2616.0,2615.8,0.4108]
[1729642921887,0.3442,2615.9,2615.8,0.4108]
[1729642923489,3.46741214,2616.0,2615.8,0.4108]
[1729642923895,0.3442,2615.9,2615.8,0.4108]
[1729642927491,3.96852216,2616.2,2615.8,0.4108]
[1729642927492,5.44426805,2617.3,2617.2,0.34403]
[1729642927695,0.0871,2618.6,2617.2,6.1878]
[1729642927896,0.34396,2617.7,2617.3,2.98]
[1729642928202,0.39833234,2617.4,2617.3,3.2078]
[1729642928410,0.39833234,2617.4,2617.3,6.1878]
[1729642933511,0.39833234,2617.4,2617.3,2.98]
[1729642934703,0.39833234,2617.4,2617.3,3.32402]
[1729642937611,3.6297,2618.3,2617.7,0.34396]
[1729642937811,0.976,2618.2,2617.7,6.1878]
[1729642938319,4.796,2618.2,2617.8,0.34395]
[1729642938517,5.1399,2618.2,2617.8,0.34395]
[1729642938706,0.4219,2618.3,2617.9,2.98]
[1729642938903,0.4219,2618.3,2618.0,3.2078]
[1729642939102,0.3983,2618.5,2618.0,3.2078]
[1729642939300,0.976,2618.4,2618.0,3.2078]
[1729642939510,0.976,2618.4,2617.8,0.3904]
[1729642939511,8.003,2618.4,2617.8,0.3904]
[1729642939712,4.1838,2618.4,2618.0,0.34392]
[1729642940020,4.1838,2618.4,2618.2,0.34389]
[1729642940208,4.1838,2618.4,2618.3,0.34388]
[1729642940411,0.3983,2618.5,2618.4,0.34387]
[1729642940709,0.3983,2618.5,2618.3,0.34388]
[1729642940710,1.3743,2618.5,2618.3,0.34388]
[1729642940912,3.8192,2618.4,2618.2,0.34389]
[1729642941105,1.3743,2618.5,2618.2,0.34389]
[1729642941308,0.34387,2618.4,2618.2,0.34389]
[1729642941504,1.3743,2618.5,2618.1,3.2078]
[1729642941714,1.3743,2618.5,2618.3,0.34388]
[1729642942115,3.8192,2618.4,2618.2,0.34389]
[1729642942319,1.71817,2618.5,2618.2,0.34389]
[1729642942713,1.3743,2618.5,2618.1,3.2078]
[1729642943115,1.71816,2618.5,2618.3,0.34388]
[1729642943313,3.8192,2618.4,2618.2,0.34389]
[1729642943620,0.34387,2618.4,2618.2,0.34389]
[1729642943810,0.34388,2618.3,2618.1,3.55171]
[1729642944019,3.8192,2618.4,2617.9,0.34393]
[1729642944319,0.34387,2618.4,2618.0,0.34391]
[1729642944512,3.7978,2618.5,2618.0,0.34391]
[1729642944712,0.3439,2618.2,2618.0,0.34391]
[1729642945112,0.8178,2618.5,2617.8,6.5782]
[1729642945314,0.34391,2618.2,2618.0,0.34392]
[1729642945624,0.34392,2618.1,2617.9,0.34393]
[1729642946420,0.3439,2618.2,2617.8,6.5782]
[1729642946623,0.975,2618.4,2617.9,0.34393]
[1729642946915,0.34391,2618.1,2617.9,0.34393]
[1729642947321,0.34391,2618.1,2617.8,6.92214]
[1729642947712,4.16392,2618.0,2617.5,3.96718]
[1729642947916,0.34394,2617.9,2617.5,0.4154]
[1729642948213,0.34397,2617.7,2617.5,0.4154]
[1729642948419,0.34395,2617.8,2617.6,0.34397]
[1729642948718,0.34395,2617.8,2617.5,0.75938]
[1729642948921,0.8028,2618.0,2617.5,0.4154]
[1729642949319,0.34397,2617.7,2617.5,0.4154]
[1729642949522,0.34396,2617.8,2617.5,0.4154]
[1729642949817,0.8028,2618.0,2617.5,0.4154]
[1729642950023,0.34395,2617.8,2617.5,0.75939]
[1729642950425,0.34395,2617.8,2617.5,0.4154]
[1729642951017,0.34395,2617.8,2617.5,0.75939]
[1729642952221,3.2078,2618.4,2617.7,6.1878]
[1729642952528,0.34389,2618.3,2618.0,0.34392]
[1729642952720,0.34389,2618.3,2618.0,3.32392]
[1729642952920,0.34389,2618.3,2618.1,0.4014]
[1729642953325,0.34388,2618.3,2618.1,0.4014]
[1729642953525,0.34388,2618.3,2618.1,0.7453]
[1729642953734,3.2078,2618.4,2618.1,0.4014]
[1729642953931,0.3439,2618.2,2618.1,0.4014]
[1729642954124,0.3439,2618.2,2618.1,0.74531]
[1729642954533,0.3439,2618.2,2618.1,0.4014]
[1729642957030,0.3439,2618.2,2618.1,3.6092]
[1729642957226,0.3439,2618.2,2618.1,0.4014]
[1729642959732,0.34389,2618.3,2618.2,0.34389]
[1729642960644,0.34388,2618.3,2618.2,0.34389]
[1729642960833,3.2078,2618.7,2618.2,0.34389]
[1729642960834,3.2078,2618.7,2618.2,2.98]
[1729642961035,0.34387,2618.4,2618.3,0.74398]
[1729642962241,0.344,2618.6,2618.5,0.34386]
[1729642962438,0.68785,2618.6,2618.5,0.34386]
[1729642963241,0.344,2618.6,2618.5,0.34386]
[1729642963541,0.68784,2618.6,2618.5,0.34386]
[1729642964334,0.344,2618.6,2618.5,0.34386]
[1729642964641,0.344,2618.6,2618.5,7.37086]
[1729642964948,0.34381,2618.9,2618.5,7.027]
[1729642965143,0.3438,2619.0,2618.8,3.32381]
[1729642965344,0.3438,2619.0,2618.9,0.3941]
[1729642966440,3.2078,2619.3,2618.9,0.3941]
[1729642966645,0.34373,2619.5,2619.3,0.34374]
[1729642966840,0.34372,2619.6,2619.4,3.32373]
[1729642967041,0.34372,2619.6,2619.5,0.3926]
[1729642967544,0.34371,2619.6,2619.5,0.3926]
[1729642968135,0.34371,2619.6,2619.5,0.7977]
[1729642978663,3.6283,2620.0,2619.5,3.7777]
[1729642978953,0.34368,2619.9,2619.7,2.98]
[1729642979252,0.34369,2619.8,2619.7,3.32369]
[1729642979751,3.6283,2620.0,2619.7,2.98]
[1729642979951,0.34368,2619.9,2619.8,0.34368]
[1729642980151,3.6283,2620.0,2619.7,2.98]
[1729642980354,0.34369,2619.8,2619.7,3.32369]
[1729642980755,3.6283,2620.0,2619.7,2.98]
[1729642981263,0.34369,2619.9,2619.8,0.34368]
[1729642981750,0.4124,2620.4,2620.0,0.34366]
[1729642981751,0.34365,2620.1,2620.0,0.34366]
[1729642982350,0.34365,2620.1,2620.0,0.75156]
[1729642982946,3.6329,2620.4,2620.0,0.75156]
[1729642982947,3.2078,2620.4,2620.1,0.34364]
[1729642983148,0.34363,2620.2,2620.1,0.34364]
[1729642984055,0.34363,2620.2,2620.1,0.34365]
[1729642984255,0.34362,2620.3,2620.2,0.34363]
[1729642984448,0.4251,2620.7,2620.3,0.34362]
[1729642984650,0.975,2620.9,2620.4,3.32361]
[1729642984865,0.34358,2620.6,2620.5,0.4255]
[1729642991560,3.2078,2621.0,2620.5,4.2415]
[1729642991760,0.3958,2621.4,2621.0,0.34352]
[1729642992054,0.34352,2621.1,2620.8,2.98]
[1729642992256,0.34351,2621.2,2621.1,3.32351]
[1729642992657,0.34351,2621.2,2621.1,2.98]
[1729642993960,3.2078,2622.2,2621.1,2.98]
[1729642994150,3.2078,2622.2,2621.0,3.2078]
[1729642994151,0.7991,2622.1,2621.7,2.98]